[Event "DSAM Bad Wildungen 2024"]
[Site "Bad Wildungen"]
[Date "2024.08.03"]
[Round "5.42"]
[White "Segermann, Nils"]
[Black "Noll, Raphael"]
[Result "0-1"]
[Annotator "NA"]
[ECO "D02"]
[WhiteElo "1780"]
[BlackElo "1611"]
[PlyCount "229"]
[EventDate "2024.07.31"]
[EventCountry "GER"]
[SourceTitle "playchess.com"]
[Source "ChessBase"]
[SourceQuality "1"]
[TimeControl "40/5400+30:900+30"]

1. d4 {[%emt 0:00:01]} d5 {[%emt 0:00:06]} 2. Bf4 {[%emt 0:00:05]} Nf6 {[%emt 0:00:47]} 3. Nf3 {[%emt 0:00:05]} Bf5 {[%emt 0:00:35]} 4. e3 {[%emt 0:00:06]} e6 {[%emt 0:00:36]} 5. Bd3 {[%emt 0:00:07]} Bg6 {[%emt 0:01:43]} 6. Ne5 {[%emt 0:00:40]} Nbd7 {[%emt 0:04:26]} 7. c3 {[%emt 0:00:01]} c6 {[%emt 0:03:09]} 8. Nxg6 {[%emt 0:00:10]} hxg6 {[%emt 0:00:16]} 9. Qb3 {[%emt 0:00:06]} Qb6 {[%emt 0:01:10]} 10. Nd2 {[%emt 0:00:16]} Be7 {[%emt 0:01:29]} 11. e4 {[%emt 0:00:35]} dxe4 {[%emt 0:07:01]} 12. Bxe4 {[%emt 0:00:07]} Nd5 {[%emt 0:03:16]} 13. Bxd5 {[%emt 0:00:25]} cxd5 {[%emt 0:02:53]} 14. O-O {[%emt 0:01:02]} g5 {[%emt 0:02:02]} 15. Bg3 {[%emt 0:00:08]} Qxb3 {[%emt 0:02:16]} 16. axb3 {[%emt 0:00:01]} f5 {[%emt 0:03:21]} 17. f3 {[%emt 0:00:33]} f4 {[%emt 0:00:58]} 18. Bf2 {[%emt 0:00:12]} Nf6 {[%emt 0:01:11]} 19. Rfe1 {[%emt 0:00:07]} Kf7 {[%emt 0:01:09]} 20. c4 {[%emt 0:00:11]} Bb4 {[%emt 0:01:54]} 21. Re2 {[%emt 0:00:02]} Bxd2 {[%emt 0:01:29]} 22. Rxd2 {[%emt 0:00:01]} a6 {[%emt 0:00:26]} 23. h3 {[%emt 0:00:05]} Rac8 {[%emt 0:02:42]} 24. c5 {[%emt 0:00:01]} Rh6 {[%emt 0:02:27]} 25. Kf1 {[%emt 0:00:32]} Rhh8 {[%emt 0:03:58]} 26. b4 {[%emt 0:00:05]} Ra8 {[%emt 0:01:44]} 27. Re2 {[%emt 0:00:07]} Nd7 {[%emt 0:08:19]} 28. b3 {[%emt 0:01:03]} Kf6 {[%emt 0:02:24]} 29. Rea2 {[%emt 0:00:03]} Rac8 {[%emt 0:04:30]} 30. Ra5 {[%emt 0:01:21]} e5 {[%emt 0:03:34]} 31. dxe5+ {[%emt 0:00:16]} Kxe5 {[%emt 0:02:08]} 32. Re1+ {[%emt 0:00:03]} Kf5 {[%emt 0:00:34]} 33. c6 {[%emt 0:00:22]} bxc6 {[%emt 0:00:54]} 34. Rxa6 {[%emt 0:00:14]} Ne5 {[%emt 0:00:45]} 35. Rd1 {[%emt 0:00:57]} Rb8 {[%emt 0:06:30]} 36. Bc5 {[%emt 0:00:10]} Ra8 {[%emt 0:02:00]} 37. Rb6 {[%emt 0:02:09]} Rhb8 {[%emt 0:01:47]} 38. Rxb8 {[%emt 0:01:25]} Rxb8 {[%emt 0:00:06]} 39. Bd6 {[%emt 0:00:27]} Rd8 {[%emt 0:01:10]} 40. Bc5 {[%emt 0:00:04]} Nd7 {[%emt 0:01:25]} 41. Bd4 {[%emt 0:15:31]} Nf6 {[%emt 0:15:53]} 42. Rc1 {[%emt 0:00:44]} Rc8 {[%emt 0:00:49]} 43. b5 {[%emt 0:00:27]} c5 {[%emt 0:00:57]} 44. Rxc5 {[%emt 0:00:02]} Rxc5 {[%emt 0:00:27]} 45. Bxc5 {[%emt 0:00:02]} Nd7 {[%emt 0:00:21]} 46. b4 {[%emt 0:00:02]} Ke6 {[%emt 0:01:31]} 47. Ke2 {[%emt 0:00:03]} Ne5 {[%emt 0:01:48]} 48. b6 {[%emt 0:02:10]} Kd7 {[%emt 0:02:08]} 49. b5 {[%emt 0:00:37]} Nf7 {[%emt 0:01:29]} 50. Kd3 {[%emt 0:00:25]} Nd8 {[%emt 0:01:01]} 51. Bd4 {[%emt 0:02:20]} Ne6 {[%emt 0:00:38]} 52. Be5 {[%emt 0:00:18]} Kc8 {[%emt 0:00:30]} 53. Kc3 {[%emt 0:02:23]} g6 {[%emt 0:00:27]} 54. Kb4 {[%emt 0:00:35]} Kb7 {[%emt 0:00:30]} 55. Bc7 {[%emt 0:00:30]} Kc8 {[%emt 0:00:30]} 56. Bd6 {[%emt 0:00:30]} Kb7 {[%emt 0:00:30]} 57. Bc5 {[%emt 0:00:30]} Kc8 {[%emt 0:00:30]} 58. Be7 {[%emt 0:00:30]} Kb7 {[%emt 0:00:30]} 59. Bc5 {[%emt 0:00:30]} Kb8 {[%emt 0:00:30]} 60. Bf2 {[%emt 0:00:30]} Ka8 {[%emt 0:00:30]} 61. Ka4 {[%emt 0:00:30]} Kb8 {[%emt 0:01:31]} 62. Be1 {[%emt 0:00:48]} Nc5+ {[%emt 0:00:30]} 63. Ka5 {[%emt 0:00:30]} Kb7 {[%emt 0:00:30]} 64. Bf2 {[%emt 0:00:30]} Ne6 {[%emt 0:00:30]} 65. Bg1 {[%emt 0:00:30]} Nd8 {[%emt 0:00:30]} 66. Kb4 {[%emt 0:00:30]} Ne6 {[%emt 0:00:30]} 67. Kc3 {[%emt 0:00:30]} Kc8 {[%emt 0:00:30]} 68. b7+ {[%emt 0:00:30]} Kxb7 {[%emt 0:00:30]} 69. Kb4 {[%emt 0:00:30]} Kc7 {[%emt 0:00:30]} 70. Bf2 {[%emt 0:00:30]} Kb7 {[%emt 0:00:30]} 71. b6 {[%emt 0:00:30]} Ka6 {[%emt 0:00:30]} 72. Bg1 {[%emt 0:00:30]} d4 {[%emt 0:00:30]} 73. Kc4 {[%emt 0:00:30]} Kxb6 {[%emt 0:00:30]} 74. Bxd4+ {[%emt 0:00:30]} Kc6 {[%emt 0:00:30]} 75. Bf6 {[%emt 0:00:30]} Kd6 {[%emt 0:00:30]} 76. Bc3 {[%emt 0:00:30]} Nc7 {[%emt 0:00:30]} 77. Bb4+ {[%emt 0:00:30]} Ke6 {[%emt 0:00:30]} 78. Bd2 {[%emt 0:00:30]} Kf5 {[%emt 0:00:30]} 79. Kd3 {[%emt 0:00:30]} Nb5 {[%emt 0:00:30]} 80. Kc4 {[%emt 0:00:30]} Nd6+ {[%emt 0:00:30]} 81. Kc5 {[%emt 0:00:30]} Ke6 {[%emt 0:00:30]} 82. Kd4 {[%emt 0:00:30]} Nf5+ {[%emt 0:00:30]} 83. Kd3 {[%emt 0:00:30]} Nh4 {[%emt 0:00:30]} 84. Ke2 {[%emt 0:00:30]} Nxg2 {[%emt 0:00:30]} 85. Kf2 {[%emt 0:00:30]} Nh4 {[%emt 0:00:30]} 86. Bc3 {[%emt 0:00:30]} Nf5 {[%emt 0:00:30]} 87. Ba5 {[%emt 0:00:30]} Nd4 {[%emt 0:00:30]} 88. Bc3 {[%emt 0:00:30]} Nf5 {[%emt 0:00:30]} 89. Ba5 {[%emt 0:00:30]} Nd4 {[%emt 0:00:30]} 90. Bc3 {[%emt 0:00:30]} Kd5 {[%emt 0:00:30]} 91. Ba5 {[%emt 0:00:30]} Kc4 {[%emt 0:00:30]} 92. Bd8 {[%emt 0:00:30]} Ne6 {[%emt 0:00:30]} 93. Bf6 {[%emt 0:00:30]} Kd5 {[%emt 0:00:30]} 94. Be7 {[%emt 0:00:30]} Kc6 {[%emt 0:00:30]} 95. Kg2 {[%emt 0:00:30]} Kd7 {[%emt 0:00:30]} 96. Bf6 {[%emt 0:00:30]} Ke8 {[%emt 0:00:30]} 97. Kf2 {[%emt 0:00:30]} Kf7 {[%emt 0:00:30]} 98. Bc3 {[%emt 0:00:30]} Kg8 {[%emt 0:00:30]} 99. Ke2 {[%emt 0:00:30]} Kh7 {[%emt 0:00:30]} 100. Kd3 {[%emt 0:00:30]} Kh6 {[%emt 0:00:30]} 101. Be1 {[%emt 0:00:30]} Kh5 {[%emt 0:00:30]} 102. Bf2 {[%emt 0:00:30]} Ng7 {[%emt 0:00:30]} 103. Ke4 {[%emt 0:00:30]} Nf5 {[%emt 0:00:30]} 104. Ke5 {[%emt 0:00:30]} Ne3 {[%emt 0:00:30]} 105. Ke4 {[%emt 0:00:30]} Nf1 {[%emt 0:00:30]} 106. Ke5 {[%emt 0:00:30]} Nd2 {[%emt 0:00:30]} 107. Kd4 {[%emt 0:00:30]} Nxf3+ {[%emt 0:00:30]} 108. Ke4 {[%emt 0:00:30]} Nd2+ {[%emt 0:00:30]} 109. Kd3 {[%emt 0:00:30]} Nf1 {[%emt 0:00:30]} 110. Ke4 {[%emt 0:00:30]} Ng3+ {[%emt 0:00:30]} 111. Bxg3 {[%emt 0:00:30]} fxg3 {[%emt 0:00:30]} 112. Kf3 {[%emt 0:00:30]} Kh4 {[%emt 0:00:30]} 113. Kg2 {[%emt 0:00:30]} g4 {[%emt 0:00:30]} 114. hxg4 {[%emt 0:00:30]} Kxg4 {[%emt 0:00:30]} 115. Kh1 {[%emt 0:00:30]} 0-1

[Event "DSAM Bad Wildungen 2024"]
[Site "Bad Wildungen"]
[Date "2024.08.03"]
[Round "5.43"]
[White "Strodthoff, Felix"]
[Black "Scholz, Paul"]
[Result "1/2-1/2"]
[Annotator "NA"]
[ECO "C01"]
[WhiteElo "1615"]
[BlackElo "1592"]
[PlyCount "57"]
[EventDate "2024.07.31"]
[EventCountry "GER"]
[SourceTitle "playchess.com"]
[Source "ChessBase"]
[SourceQuality "1"]
[TimeControl "40/5400+30:900+30"]

1. e4 {[%emt 0:00:03]} e6 {[%emt 0:00:06]} 2. d4 {[%emt 0:00:03]} d5 {[%emt 0:00:05]} 3. Bd3 {[%emt 0:00:03]} dxe4 {[%emt 0:02:54]} 4. Bxe4 {[%emt 0:00:07]} Nf6 {[%emt 0:00:05]} 5. Bf3 {[%emt 0:00:02]} Bd6 {[%emt 0:00:39]} 6. Ne2 {[%emt 0:00:20]} Nbd7 {[%emt 0:00:44]} 7. c4 {[%emt 0:01:29]} e5 {[%emt 0:06:19]} 8. c5 {[%emt 0:02:38]} Be7 {[%emt 0:00:30]} 9. c6 {[%emt 0:00:16]} e4 {[%emt 0:02:52]} 10. cxd7+ {[%emt 0:00:25]} Bxd7 {[%emt 0:00:26]} 11. Bxe4 {[%emt 0:00:35]} Nxe4 {[%emt 0:00:09]} 12. Nbc3 {[%emt 0:00:47]} Nd6 {[%emt 0:04:21]} 13. O-O {[%emt 0:00:51]} O-O {[%emt 0:02:10]} 14. Nd5 {[%emt 0:00:38]} Re8 {[%emt 0:01:20]} 15. Re1 {[%emt 0:00:16]} c6 {[%emt 0:01:40]} 16. Nxe7+ {[%emt 0:00:06]} Rxe7 {[%emt 0:00:08]} 17. Nc3 {[%emt 0:00:14]} Rxe1+ {[%emt 0:01:58]} 18. Qxe1 {[%emt 0:00:04]} Be6 {[%emt 0:03:53]} 19. Be3 {[%emt 0:01:40]} Qf6 {[%emt 0:04:31]} 20. Rd1 {[%emt 0:00:44]} Re8 {[%emt 0:03:19]} 21. Qd2 {[%emt 0:00:29]} Nc4 {[%emt 0:03:32]} 22. Qc1 {[%emt 0:00:58]} Nb6 {[%emt 0:02:01]} 23. b3 {[%emt 0:01:38]} h6 {[%emt 0:03:00]} 24. Ne4 {[%emt 0:00:56]} Qg6 {[%emt 0:01:32]} 25. Ng3 {[%emt 0:01:12]} Bd5 {[%emt 0:04:02]} 26. Qb1 {[%emt 0:00:12]} Qxb1 {[%emt 0:01:32]} 27. Rxb1 {[%emt 0:00:08]} Nc8 {[%emt 0:01:04]} 28. a4 {[%emt 0:00:48]} a6 {[%emt 0:03:30]} 29. b4 {[%emt 0:01:11]} 1/2-1/2

[Event "DSAM Bad Wildungen 2024"]
[Site "Bad Wildungen"]
[Date "2024.08.03"]
[Round "5.45"]
[White "Vry, Fabian"]
[Black "Voskanyan, Artur S."]
[Result "1-0"]
[Annotator "NA"]
[ECO "C50"]
[WhiteElo "1513"]
[BlackElo "1508"]
[PlyCount "61"]
[EventDate "2024.07.31"]
[EventCountry "GER"]
[SourceTitle "playchess.com"]
[Source "ChessBase"]
[SourceQuality "1"]
[TimeControl "40/5400+30:900+30"]

1. e4 {[%emt 0:00:05]} e5 {[%emt 0:00:15]} 2. Nf3 {[%emt 0:00:05]} Nc6 {[%emt 0:00:05]} 3. Bc4 {[%emt 0:00:03]} Nf6 {[%emt 0:00:05]} 4. d3 {[%emt 0:00:09]} Bc5 {[%emt 0:00:10]} 5. Nc3 {[%emt 0:00:09]} d6 {[%emt 0:01:25]} 6. h3 {[%emt 0:00:08]} h6 {[%emt 0:00:13]} 7. Na4 {[%emt 0:00:08]} Bb6 {[%emt 0:00:23]} 8. Nxb6 {[%emt 0:00:06]} axb6 {[%emt 0:00:04]} 9. Be3 {[%emt 0:01:24]} d5 {[%emt 0:13:37]} 10. exd5 {[%emt 0:03:26]} Nxd5 {[%emt 0:01:09]} 11. O-O {[%emt 0:02:37]} Be6 {[%emt 0:04:16]} 12. Bb5 {[%emt 0:07:03]} Nxe3 {[%emt 0:10:56]} 13. fxe3 {[%emt 0:00:26]} Qd6 {[%emt 0:01:41]} 14. d4 {[%emt 0:08:41]} exd4 {[%emt 0:19:21]} 15. exd4 {[%emt 0:04:35]} O-O {[%emt 0:04:02]} 16. c3 {[%emt 0:06:47]} Qg3 {[%emt 0:13:38]} 17. Kh1 {[%emt 0:07:21]} Qd6 {[%emt 0:05:56]} 18. Bd3 {[%emt 0:07:37]} Rfd8 {[%emt 0:03:12]} 19. a3 {[%emt 0:01:08]} Na5 {[%emt 0:01:58]} 20. Ne5 {[%emt 0:05:34]} c5 {[%emt 0:02:46]} 21. Qf3 {[%emt 0:05:34]} Rf8 {[%emt 0:02:50]} 22. Qe4 {[%emt 0:07:56]} f5 {[%emt 0:02:31]} 23. Qe3 {[%emt 0:08:54]} cxd4 {[%emt 0:02:26]} 24. cxd4 {[%emt 0:01:27]} Rad8 {[%emt 0:01:58]} 25. Rad1 {[%emt 0:00:37]} Qxd4 {[%emt 0:01:54]} 26. Qxd4 {[%emt 0:07:43]} Rxd4 {[%emt 0:00:07]} 27. Ng6 {[%emt 0:01:07]} Re8 {[%emt 0:02:18]} 28. Bb5 {[%emt 0:02:55]} Rxd1 {[%emt 0:01:39]} 29. Rxd1 {[%emt 0:00:20]} Nc6 {[%emt 0:00:23]} 30. Rd6 {[%emt 0:01:36]} Kh7 {[%emt 0:01:31]} 31. Rxe6 {[%emt 0:00:10]} 1-0

[Event "DSAM Bad Wildungen 2024"]
[Site "Bad Wildungen"]
[Date "2024.08.03"]
[Round "5.46"]
[White "Schroeder, Timo"]
[Black "de Long Habermann, Zidanta"]
[Result "1/2-1/2"]
[Annotator "NA"]
[ECO "C02"]
[WhiteElo "1704"]
[BlackElo "1712"]
[PlyCount "82"]
[EventDate "2024.07.31"]
[EventCountry "GER"]
[SourceTitle "playchess.com"]
[Source "ChessBase"]
[SourceQuality "1"]
[TimeControl "40/5400+30:900+30"]

1. e4 {[%emt 0:00:03]} e6 {[%emt 0:00:01]} 2. d4 {[%emt 0:00:08]} d5 {[%emt 0:00:04]} 3. e5 {[%emt 0:00:14]} c5 {[%emt 0:00:01]} 4. c3 {[%emt 0:00:04]} Nc6 {[%emt 0:00:05]} 5. Nf3 {[%emt 0:00:04]} Qb6 {[%emt 0:00:04]} 6. a3 {[%emt 0:00:23]} Nh6 {[%emt 0:02:12]} 7. b4 {[%emt 0:00:08]} cxd4 {[%emt 0:00:06]} 8. cxd4 {[%emt 0:00:06]} Nf5 {[%emt 0:00:35]} 9. Bb2 {[%emt 0:00:06]} Bd7 {[%emt 0:03:59]} 10. g4 {[%emt 0:02:47]} Nfe7 {[%emt 0:04:18]} 11. Nc3 {[%emt 0:01:06]} Rc8 {[%emt 0:04:05]} 12. h4 {[%emt 0:16:06]} a5 {[%emt 0:07:24]} 13. b5 {[%emt 0:05:42]} Na7 {[%emt 0:00:38]} 14. a4 {[%emt 0:00:16]} Ng8 {[%emt 0:01:00]} 15. g5 {[%emt 0:09:22]} Bb4 {[%emt 0:02:14]} 16. Qd3 {[%emt 0:00:41]} Ne7 {[%emt 0:00:57]} 17. h5 {[%emt 0:05:59]} Rc4 {[%emt 0:05:16]} 18. Qd2 {[%emt 0:05:54]} Rc7 {[%emt 0:02:57]} 19. Nh4 {[%emt 0:04:03]} Nac8 {[%emt 0:04:03]} 20. Rh3 {[%emt 0:02:15]} Qa7 {[%emt 0:03:51]} 21. Ba3 {[%emt 0:02:08]} Bxa3 {[%emt 0:02:11]} 22. Rxa3 {[%emt 0:00:04]} Nb6 {[%emt 0:00:24]} 23. Qf4 {[%emt 0:06:28]} Kd8 {[%emt 0:06:20]} 24. Qxf7 {[%emt 0:06:38]} Nc4 {[%emt 0:00:57]} 25. Bxc4 {[%emt 0:00:15]} Rxc4 {[%emt 0:00:06]} 26. Ne2 {[%emt 0:00:40]} Rxd4 {[%emt 0:02:04]} 27. Nxd4 {[%emt 0:00:53]} Qxd4 {[%emt 0:00:02]} 28. Qxg7 {[%emt 0:05:09]} Rg8 {[%emt 0:00:11]} 29. Qxh7 {[%emt 0:01:05]} Qxe5+ {[%emt 0:00:02]} 30. Rhe3 {[%emt 0:01:07]} Qxg5 {[%emt 0:00:05]} 31. Ng6 {[%emt 0:00:29]} Qg1+ {[%emt 0:01:42]} 32. Ke2 {[%emt 0:03:17]} Qg4+ {[%emt 0:00:07]} 33. Kf1 {[%emt 0:02:24]} Re8 {[%emt 0:00:44]} 34. Nxe7 {[%emt 0:00:33]} Rxe7 {[%emt 0:00:04]} 35. Qh8+ {[%emt 0:00:06]} Be8 {[%emt 0:00:30]} 36. Qe5 {[%emt 0:01:09]} Rc7 {[%emt 0:01:58]} 37. Rec3 {[%emt 0:07:09]} Qd1+ {[%emt 0:03:28]} 38. Kg2 {[%emt 0:00:33]} Rxc3 {[%emt 0:01:34]} 39. Rxc3 {[%emt 0:02:41]} Qg4+ {[%emt 0:00:02]} 40. Kf1 {[%emt 0:00:13]} Qd1+ {[%emt 0:00:42]} 41. Kg2 {[%emt 0:15:13]} Qg4+ {[%emt 0:15:33]} 1/2-1/2